bitfinex/quotes_ETHUSD_20230116
["timestamp","ask_amount","ask_price","bid_price","bid_amount"]
[1673836727948,0.44760025,1578.0,1577.7,6.33832]
[1673836728738,0.44547663,1578.0,1577.7,6.33832]
[1673836729572,0.44547663,1578.0,1577.7,12.67666]
[1673836729784,0.44547663,1578.0,1577.7,13.95066]
[1673836730044,0.44547663,1578.0,1577.8,1.395066]
[1673836730217,0.44547663,1578.0,1577.5,6.36269442]
[1673836730433,0.44547663,1578.0,1577.5,0.02356442]
[1673836730434,1.39506599,1577.7,1577.5,0.02356442]
[1673836734336,2.3395689,1577.7,1577.5,0.02356442]
[1673836734722,1.39506599,1577.7,1577.5,0.02356442]
[1673836735875,1.39506599,1577.7,1577.5,6.36264442]
[1673836736085,1.39506599,1577.7,1577.6,0.63626444]
[1673836736314,1.39506599,1577.7,1577.5,0.02356442]
[1673836737910,2.3395689,1577.7,1577.5,0.02356442]
[1673836738093,1.39506599,1577.7,1577.5,0.02356442]
[1673836739394,3.75632327,1577.7,1577.5,0.02356442]
[1673836739574,2.51723557,1577.6,1577.5,0.02356442]
[1673836739916,8.85597557,1577.6,1577.5,0.02356442]
[1673836740092,3.75632327,1577.7,1577.5,0.02356442]
[1673836740313,2.3395689,1577.7,1577.5,0.02356442]
[1673836741026,21.2786016,1577.7,1577.5,0.02356442]
[1673836741282,19.70589005,1577.7,1577.5,0.02356442]
[1673836742283,2.51721488,1577.6,1577.5,0.02356442]
[1673836742496,6.33874,1577.6,1577.5,0.02356442]
[1673836744025,12.67748,1577.6,1577.5,0.02356442]
[1673836744395,15.19475453,1577.6,1577.5,0.02356442]
[1673836745759,18.46754131,1577.6,1577.5,0.02356442]
[1673836745966,27.38960376,1577.6,1577.4,0.00538947]
[1673836746211,10.14433377,1577.5,1577.4,0.00538947]
[1673836746380,19.54982699,1577.5,1577.4,0.00538947]
[1673836746598,17.3268383,1577.5,1577.4,0.00538947]
[1673836746804,17.32144613,1577.5,1577.4,0.00538947]
[1673836747227,15.89937658,1577.5,1577.4,0.00538947]
[1673836747767,3.22109658,1577.5,1577.4,0.00538947]
[1673836747971,2.99109658,1577.5,1577.4,0.00538947]
[1673836748396,2.52078875,1577.5,1577.4,0.00538947]
[1673836748691,1.07572883,1577.5,1577.4,0.00538947]
[1673836748962,1.42361713,1577.6,1577.4,0.00538947]
[1673836749124,9.14261713,1577.7,1577.4,0.00538947]
[1673836749494,0.94801713,1577.8,1577.4,0.00538947]
[1673836749649,4.41830243,1577.8,1577.4,0.00538947]
[1673836750046,2.84568668,1577.8,1577.4,0.00538947]
[1673836750163,1.42361713,1577.8,1577.4,6.34487947]
[1673836750376,0.94801713,1577.8,1577.4,6.34487947]
[1673836750687,5.05556214,1577.9,1577.4,6.34487947]
[1673836750688,6.30115086,1577.9,1577.4,12.68441947]
[1673836750951,4.72857927,1577.9,1577.4,14.59449573]
[1673836751113,2.52058107,1577.8,1577.4,14.59449573]
[1673836751323,4.72857927,1577.9,1577.4,14.59449573]
[1673836751586,6.30112168,1577.9,1577.4,14.59449573]
[1673836751756,6.30112168,1577.9,1577.5,1.45944957]
[1673836751975,0.94801713,1577.8,1577.5,7.79843957]
[1673836752375,4.72857927,1577.9,1577.5,6.33899]
[1673836752637,6.30110128,1577.9,1577.5,6.33899]
[1673836753154,2.52053914,1577.9,1577.5,13.96013]
[1673836753373,2.37008668,1578.0,1577.5,14.60646918]
[1673836753545,2.37008668,1578.0,1577.7,12.67652]
[1673836753904,3.94250769,1578.0,1577.7,12.67271233]
[1673836754822,2.84558668,1578.1,1577.7,12.67271233]
[1673836754993,0.94801713,1578.1,1577.7,13.94671233]
[1673836755454,2.52028714,1578.1,1577.7,13.94671233]
[1673836755661,0.94801713,1578.2,1577.9,12.67506]
[1673836755873,2.52015586,1578.2,1577.9,12.67506]
[1673836756301,2.37008668,1578.3,1577.9,13.95706]
[1673836756516,0.94801713,1578.3,1577.9,13.95706]
[1673836756731,2.37008668,1578.3,1578.1,12.67346]
[1673836756894,2.37008668,1578.3,1578.1,10.99651163]
[1673836757099,0.94801713,1578.3,1578.1,10.99651163]
[1673836757329,0.94801713,1578.2,1577.8,20.22345]
[1673836757523,2.37008668,1578.2,1577.8,12.67535]
[1673836757771,2.79599593,1578.2,1577.8,12.67535]
[1673836757970,2.79599593,1578.2,1577.8,6.33767]
[1673836758451,0.94801713,1578.1,1577.7,6.33802]
[1673836758593,2.52033707,1578.1,1577.7,6.33802]
[1673836759273,3.94240662,1578.1,1577.7,6.33802]
[1673836759869,2.52033707,1578.0,1577.6,6.33844]
[1673836760315,2.52033707,1578.0,1577.6,12.67718]
[1673836760316,3.94240662,1578.0,1577.6,12.67718]
[1673836760707,0.94801713,1578.0,1577.6,12.67718]
[1673836761120,4.72832075,1578.1,1577.6,12.67718]
[1673836761477,0.94801713,1578.1,1577.8,12.6757]
[1673836761695,2.52032998,1578.1,1577.8,12.6757]
[1673836762905,0.94801713,1578.2,1577.8,13.9577]
[1673836763114,2.52023127,1578.2,1577.8,13.9577]
[1673836763331,2.37008668,1578.3,1578.0,12.6741]
[1673836763533,3.94220911,1578.3,1578.0,12.6741]
[1673836763750,2.37008668,1578.3,1578.0,12.6741]
[1673836764532,3.94221579,1578.3,1578.0,6.33705]
[1673836764745,0.94801713,1578.2,1578.0,6.33705]
[1673836764940,2.37008668,1578.3,1578.0,6.33705]
[1673836765698,2.37008668,1578.3,1578.0,14.081192]
[1673836766293,0.94801713,1578.3,1578.0,14.081192]
[1673836766617,2.37008668,1578.3,1578.0,14.081192]
[1673836766834,2.37008668,1578.3,1578.0,12.67418]
[1673836767220,2.37008668,1578.3,1578.0,6.33705]
[1673836767652,2.37008668,1578.3,1578.0,12.67418]
[1673836767883,0.94801713,1578.3,1578.0,12.67418]
[1673836768093,3.31107537,1578.4,1578.0,13.94518]
[1673836768094,2.37008668,1578.4,1578.0,13.94518]
[1673836768375,0.94801713,1578.4,1578.2,12.67266]
[1673836770309,0.94801713,1578.4,1578.2,6.33633]
[1673836772906,0.94801713,1578.3,1578.0,6.33705]
[1673836774165,2.37008668,1578.4,1578.0,6.33705]
[1673836774375,3.9422304,1578.4,1578.0,6.33705]
[1673836775851,2.52016085,1578.3,1578.0,6.33705]
[1673836776074,0.94801713,1578.3,1578.0,6.33705]
[1673836776289,0.94801713,1578.4,1578.0,12.67418]
[1673836776464,1.60974979,1578.4,1578.0,12.67418]
[1673836776672,0.94801713,1578.4,1578.0,12.67418]
[1673836776884,2.52011628,1578.4,1578.0,12.67418]
[1673836777094,0.94801713,1578.4,1578.0,12.67418]
[1673836777762,0.94801713,1578.4,1577.9,26.40152]
[1673836777935,2.52010507,1578.4,1577.9,26.40152]
[1673836778143,2.95320472,1578.4,1577.9,26.40152]
[1673836779684,0.94801713,1578.4,1577.9,26.40152]
[1673836779898,2.52013609,1578.4,1577.9,26.40152]
[1673836780323,2.52013609,1578.4,1578.0,1.282]
[1673836780630,2.37008668,1578.5,1578.1,19.01001]
[1673836780950,3.94211908,1578.5,1578.1,19.01001]
[1673836781164,0.94801713,1578.5,1578.2,1.901001]
[1673836781380,2.52003503,1578.5,1578.2,12.8966319]
[1673836781898,29.35005765,1578.6,1578.2,12.8966319]
[1673836782277,29.35005765,1578.6,1578.3,1.28966319]
[1673836782478,2.50475765,1578.6,1578.3,1.28966319]
[1673836782799,2.51994829,1578.5,1578.3,1.28966319]
[1673836783422,0.94801713,1578.5,1578.3,1.28966319]
[1673836783668,2.52002843,1578.5,1578.3,1.28966319]
[1673836783878,2.52002843,1578.5,1578.2,12.8966319]
[1673836784057,2.52002843,1578.4,1578.2,6.5603019]
[1673836784273,0.94801713,1578.4,1578.2,6.5603019]
[1673836785994,2.99414283,1578.5,1578.2,6.5603019]
[1673836785995,0.94801713,1578.5,1578.2,6.5603019]
[1673836786157,2.51994243,1578.5,1578.2,6.5603019]
[1673836786612,2.51994243,1578.5,1578.2,12.8966319]
[1673836787428,2.37008668,1578.5,1578.2,12.8966319]
[1673836787625,2.50475765,1578.6,1578.3,2.56166319]
[1673836787838,2.50475765,1578.6,1578.4,13.94504]
[1673836787839,1.0826881,1578.6,1578.4,13.94504]
[1673836788054,0.13467097,1578.6,1578.5,1.282]
[1673836788263,0.13467097,1578.6,1578.5,13.95224]
[1673836789021,0.13467097,1578.6,1578.5,16.95224]
[1673836789261,0.13467097,1578.6,1578.5,20.6255411]
[1673836790386,0.13467097,1578.6,1578.5,16.97920192]
[1673836790591,0.13467097,1578.6,1578.5,19.97920192]
[1673836790817,0.13467097,1578.6,1578.5,18.69720192]
[1673836792193,0.13467097,1578.6,1578.5,15.69720192]
[1673836793549,0.81167097,1578.6,1578.4,7.61752]
[1673836793727,0.81167097,1578.6,1578.2,6.33601]
[1673836793941,0.81167097,1578.6,1578.2,12.67208]
[1673836794271,0.13467097,1578.6,1578.3,1.282]
[1673836794469,0.13467097,1578.6,1578.4,12.67104]
[1673836796095,0.13467097,1578.6,1578.4,14.40319718]
[1673836796310,0.13467097,1578.6,1578.4,15.68519718]
[1673836797101,0.13467097,1578.6,1578.3,7.61761]
[1673836797313,0.13467097,1578.6,1578.3,6.33561]
[1673836798271,0.13467097,1578.6,1578.3,13.94454]
[1673836798481,0.13467097,1578.6,1578.3,14.59087918]
[1673836798725,0.13467097,1578.6,1578.4,1.282]
[1673836799046,0.13467097,1578.6,1578.5,12.67024]
[1673836800461,0.13467097,1578.6,1578.5,14.58857918]
[1673836800690,0.13467097,1578.6,1578.5,17.58857918]
[1673836801549,0.13467097,1578.6,1578.5,17.59857918]
[1673836802354,0.13147478,1578.6,1578.5,17.59857918]
[1673836802567,0.13147478,1578.6,1578.5,20.78420089]
[1673836803329,0.13147478,1578.6,1578.5,19.50220089]
[1673836804038,0.13147478,1578.6,1578.5,20.94320089]
[1673836804254,0.13147478,1578.6,1578.5,14.75757918]
[1673836804879,0.13147478,1578.6,1578.5,14.11124]
[1673836805247,0.13147478,1578.6,1578.5,12.67024]
[1673836807263,0.80847478,1578.6,1578.4,6.33516]
[1673836807467,0.80847478,1578.6,1578.4,4.65866786]
[1673836807763,0.21232226,1578.6,1578.4,4.65866786]
[1673836807980,0.13147478,1578.6,1578.4,10.99418786]
[1673836809033,0.13147478,1578.6,1578.3,6.33562]
[1673836809239,0.94801713,1578.5,1578.2,6.33604]
[1673836809469,0.94801713,1578.5,1578.1,6.33634]
[1673836809772,0.09480171,1578.4,1578.1,6.33634]
[1673836810881,1.04281884,1578.4,1578.1,6.33634]
[1673836811526,0.09480171,1578.4,1578.1,6.33634]
[1673836812922,0.94801713,1578.5,1578.1,6.33634]
[1673836813164,2.97686146,1578.6,1578.1,14.75340918]
[1673836813624,2.97686146,1578.6,1578.1,8.41667918]
[1673836813832,9.31164146,1578.6,1578.1,8.41667918]
[1673836814040,0.94801713,1578.4,1578.0,24.85805]
[1673836814254,3.30125083,1578.5,1578.0,12.67395]
[1673836814459,2.52001352,1578.4,1578.0,12.67395]
[1673836815919,0.94801713,1578.4,1578.0,12.67395]
[1673836816175,0.94801713,1578.4,1578.0,6.33686]
[1673836816388,1.04281884,1578.3,1578.0,6.33686]
[1673836816601,1.9104,1578.2,1577.8,6.33763]
[1673836816759,2.85841713,1578.2,1577.8,6.33763]
[1673836817122,1.435,1578.2,1577.8,6.33763]
[1673836817301,0.1435,1578.1,1577.8,6.33763]
[1673836818033,1.51821884,1578.3,1577.8,13.32189918]
[1673836818247,0.94801713,1578.2,1577.8,6.33763]
[1673836818460,2.52021537,1578.2,1577.8,6.33763]
[1673836819016,2.52021537,1578.2,1577.7,0.07323692]
[1673836819017,0.94801713,1578.1,1577.7,0.07323692]
[1673836819229,8.85712537,1578.1,1577.7,0.07323692]
[1673836819442,0.88571254,1578.0,1577.7,0.07323692]
[1673836819615,7.22301254,1578.0,1577.7,0.07323692]
[1673836819809,13.56031254,1578.0,1577.7,0.07323692]
[1673836823975,16.83309932,1578.0,1577.7,0.07323692]
[1673836824290,0.88571254,1578.0,1577.7,0.07323692]
[1673836824500,0.4755,1577.9,1577.7,0.07323692]
[1673836824658,1.36121254,1578.0,1577.7,0.07323692]
[1673836825441,0.88571254,1578.0,1577.7,0.07323692]
[1673836825663,0.08857125,1577.9,1577.7,0.07323692]
[1673836825969,6.33793,1577.8,1577.7,0.07323692]
[1673836826337,17.60964678,1577.8,1577.7,0.07323692]
[1673836826545,18.08524678,1577.8,1577.7,0.07323692]
[1673836827419,18.08524678,1577.8,1577.7,1e-08]
[1673836827599,20.46580128,1577.8,1577.7,1e-08]
[1673836828988,19.99020128,1577.8,1577.7,1e-08]
[1673836830327,12.22127128,1577.8,1577.7,1e-08]
[1673836830541,0.56407125,1577.9,1577.7,1e-08]
[1673836830785,0.4755,1577.9,1577.7,1e-08]
[1673836830999,35.46547,1578.1,1577.7,1e-08]
[1673836831331,45.07531678,1578.1,1577.7,1e-08]
[1673836831522,1.436,1577.9,1577.7,1e-08]
[1673836831859,17.99984678,1577.8,1577.7,1e-08]
[1673836832385,18.22984678,1577.8,1577.7,1e-08]
[1673836832909,19.30427587,1577.8,1577.7,1e-08]
[1673836839783,17.39667587,1577.8,1577.7,1e-08]
[1673836840348,1.21802909,1577.8,1577.7,1e-08]
[1673836840558,1.07442909,1577.8,1577.7,1e-08]
[1673836841389,1.07442909,1577.8,1577.7,6.33834001]
[1673836841646,0.94801713,1578.3,1577.7,19.18001919]
[1673836841853,19.0284,1578.4,1577.8,1.434]
[1673836842025,19.0284,1578.4,1578.0,1.434]
[1673836842239,11.04938221,1578.5,1578.0,2.844854]
[1673836842240,8.69111713,1578.5,1578.0,2.844854]
[1673836842455,8.2185,1578.5,1578.0,2.844854]
[1673836843007,0.4754,1578.5,1578.0,2.844854]
[1673836843226,1.42341713,1578.5,1578.0,2.844854]
[1673836843823,0.94801713,1578.5,1578.0,15.519014]
[1673836844012,4.85982654,1578.6,1578.1,15.6548914]
[1673836844342,17.52930654,1578.6,1578.1,2.9819014]
[1673836845324,3.94215325,1578.5,1578.1,1.5519014]
[1673836845532,18.31334346,1578.5,1578.1,1.5519014]
[1673836845694,15.19149195,1578.4,1577.9,12.7331]
[1673836845913,13.61941713,1578.4,1577.9,12.7331]
[1673836846567,0.94801713,1578.4,1577.9,19.07059]
[1673836846790,0.94801713,1578.5,1578.1,6.3366]
[1673836846951,0.94801713,1578.5,1578.2,0.63366]
[1673836846952,2.52000326,1578.5,1578.2,0.63366]
[1673836847164,0.94801713,1578.5,1578.2,0.63366]
[1673836847432,0.63366,1578.1,1577.9,12.7331]
[1673836847638,0.63366,1578.1,1577.8,17.10928]
[1673836847792,0.63366,1578.1,1577.9,3.0]
[1673836847999,0.63366,1578.1,1577.7,10.26853919]
[1673836848229,0.63366,1578.1,1577.7,16.60686919]
[1673836848477,0.63366,1578.1,1577.8,1.66068692]
[1673836849069,0.63366,1578.1,1577.7,7.77933001]
[1673836851063,0.63366,1578.1,1577.7,8.42566919]
[1673836851699,0.63366,1578.1,1577.7,14.76400919]
[1673836852161,0.63366,1578.1,1577.7,8.42566919]
[1673836853589,0.63366,1578.1,1577.7,2.08733919]
[1673836853857,12.7163421,1578.1,1577.7,2.08733919]
[1673836854024,16.0586534,1578.1,1577.7,0.64633919]
[1673836854236,16.0586534,1578.1,1577.7,1e-08]
[1673836854237,17.48072295,1578.1,1577.7,1e-08]
[1673836854677,16.0586534,1578.1,1577.7,1e-08]
[1673836855439,15.4249934,1578.1,1577.7,1e-08]
[1673836855583,7.28474713,1578.1,1577.7,0.30000001]
[1673836855794,0.94801713,1578.1,1577.7,0.30000001]
[1673836856110,11.06484268,1578.2,1577.7,0.30000001]
[1673836856320,11.06484268,1578.2,1577.7,6.63817001]
[1673836856531,11.06484268,1578.2,1577.8,0.663817]
[1673836856797,11.06484268,1578.2,1577.7,14.40934001]
[1673836856947,3.30640313,1578.2,1577.8,1.435]
[1673836857162,0.94801713,1578.3,1577.9,14.11598]
[1673836857633,0.94801713,1578.3,1577.9,14.76231918]
[1673836857792,0.94801713,1578.3,1578.0,1.47623192]
[1673836858004,2.52014829,1578.3,1578.0,1.47623192]
[1673836858245,4.72828429,1578.4,1578.0,1.47623192]
[1673836858418,3.30621474,1578.4,1578.0,1.47623192]
[1673836858633,3.94215025,1578.4,1578.0,7.81335192]
[1673836858846,6.30034786,1578.4,1578.1,0.78133519]
[1673836859311,3.30621474,1578.4,1578.1,0.78133519]
[1673836859520,2.52005029,1578.4,1578.1,0.78133519]
[1673836859685,2.52005029,1578.4,1578.0,7.81335192]
[1673836859686,2.52013354,1578.3,1578.0,7.81335192]
[1673836859894,0.94801713,1578.3,1578.0,7.81335192]
[1673836860887,4.72828429,1578.4,1578.0,7.81335192]
[1673836861259,28.53952582,1578.5,1578.0,15.58048192]
[1673836861260,4.72828429,1578.5,1578.0,15.58048192]
[1673836861470,0.94801713,1578.5,1578.2,1.433]
[1673836861741,0.94801713,1578.4,1578.2,1.433]
[1673836861903,2.37008668,1578.5,1578.2,1.433]
[1673836862259,0.94801713,1578.4,1578.0,0.64633918]
[1673836862415,1.57194577,1578.3,1577.8,31.5888]
[1673836862632,4.22080391,1578.3,1577.8,8.0942]
[1673836862885,10.75411579,1578.2,1577.8,8.0942]
[1673836863088,7.28437713,1578.2,1577.7,6.33809001]
[1673836863300,7.28437713,1578.2,1577.8,0.633809]
[1673836863892,2.84548668,1578.3,1577.8,6.971709]
[1673836864060,2.84548668,1578.4,1577.9,1.433]
[1673836864372,2.84548668,1578.4,1578.0,12.67406]
[1673836864373,1.42341713,1578.4,1578.0,12.67406]
[1673836864739,1.42341713,1578.4,1578.0,14.11506]
[1673836864953,0.94801713,1578.4,1578.1,1.411506]
[1673836865192,0.94801713,1578.3,1577.9,8.42449918]
[1673836865620,2.52005798,1578.3,1577.9,2.08733918]
[1673836865949,2.52005798,1578.3,1577.9,1.441]
[1673836866742,2.52005798,1578.3,1577.9,7.77845]
[1673836866960,3.94212753,1578.3,1577.9,1.441]
[1673836867168,2.52005798,1578.2,1577.9,1.441]
[1673836867783,8.97469088,1578.3,1577.9,1.441]
[1673836867784,2.37008668,1578.3,1577.9,1.441]
[1673836868000,3.94226091,1578.3,1577.9,7.77847]
[1673836868315,0.94801713,1578.2,1577.8,4.66054322]
[1673836868644,1.04281884,1578.1,1577.7,9.98456919]
[1673836868990,1.04281884,1578.1,1577.7,9.33823001]
[1673836869608,3.30621474,1578.2,1577.7,17.10857001]
[1673836869819,10.97228668,1578.3,1577.8,1.434]
[1673836870009,9.55021713,1578.3,1577.9,12.6747]
[1673836870219,1.42341713,1578.3,1577.9,14.719335]
[1673836871040,1.42341713,1578.3,1577.9,8.381965]
[1673836871476,0.94801713,1578.3,1577.9,8.381965]
[1673836871688,2.52014563,1578.3,1577.9,8.381965]
[1673836873267,2.37008668,1578.2,1577.8,6.33765]
[1673836873475,3.94221518,1578.2,1577.8,6.33765]
[1673836874406,2.52014563,1578.1,1577.8,6.33765]
[1673836874617,0.94801713,1578.1,1577.8,6.33765]
[1673836874821,0.94801713,1578.1,1577.8,8.11307092]
[1673836875091,2.99435279,1578.2,1577.8,14.45100092]
[1673836875092,0.94801713,1578.2,1577.8,14.45100092]
[1673836875250,3.78168233,1578.4,1578.0,1.441]
[1673836875458,13.25415188,1578.5,1578.1,1.441]
[1673836875685,13.25415188,1578.5,1578.2,6.33625]
[1673836875686,2.37008668,1578.5,1578.2,6.33625]
[1673836875927,3.9420206,1578.5,1578.2,6.33625]
[1673836876141,2.51995105,1578.4,1578.2,6.33625]
[1673836876294,0.94801713,1578.5,1578.2,6.33625]
[1673836876719,2.51991377,1578.5,1578.2,7.762039]
[1673836876933,5.80081535,1578.6,1578.3,1.441]
[1673836876934,3.43775711,1578.6,1578.3,1.441]
[1673836877195,1.07949191,1578.6,1578.4,12.67104]
[1673836877615,0.13147478,1578.6,1578.4,12.67104]
[1673836877784,0.13147478,1578.6,1578.4,14.11204]
[1673836877990,0.13147478,1578.6,1578.5,2.844204]
[1673836878222,0.13147478,1578.6,1578.5,18.514444]
[1673836878560,0.13147478,1578.6,1578.5,20.63914377]
[1673836879199,0.13147478,1578.6,1578.5,19.19814377]
[1673836880855,0.13147478,1578.6,1578.5,18.55180459]
[1673836881061,0.13147478,1578.6,1578.5,19.19814377]
[1673836881885,0.13147478,1578.6,1578.5,16.19814377]
[1673836882234,0.13147478,1578.6,1578.5,17.63914377]
[1673836882455,0.13147478,1578.6,1578.5,17.86914377]
[1673836882778,0.13147478,1578.6,1578.5,17.63914377]
[1673836883147,0.13147478,1578.6,1578.5,19.19814377]
[1673836883710,0.13147478,1578.6,1578.5,9.179324]
[1673836883883,0.13147478,1578.6,1578.5,7.76812]
[1673836884305,0.13147478,1578.6,1578.5,14.74957918]
[1673836885054,0.80847478,1578.6,1578.5,8.41445918]
[1673836885289,0.13147478,1578.6,1578.5,8.41445918]
[1673836885878,0.13147478,1578.6,1578.5,14.74957918]
[1673836886088,0.13147478,1578.6,1578.5,21.0742961]
[1673836890425,0.13147478,1578.6,1578.5,22.5152961]
[1673836892008,0.13147478,1578.6,1578.5,22.7452961]
[1673836892795,0.13147478,1578.6,1578.5,30.9026961]
[1673836893158,0.12765877,1578.6,1578.5,30.93490137]
[1673836893505,0.12765877,1578.6,1578.5,29.2396961]
[1673836894847,0.12765877,1578.6,1578.5,29.27190137]
[1673836898780,0.12765877,1578.6,1578.5,27.83090137]
[1673836898992,0.12765877,1578.6,1578.5,17.52472527]
[1673836899207,0.12765877,1578.6,1578.5,9.33512]
[1673836899945,0.12765877,1578.6,1578.5,15.67024]
[1673836900854,0.12765877,1578.6,1578.5,6.33512]
[1673836903677,0.12765877,1578.6,1578.4,25.47920918]
[1673836904237,0.12765877,1578.6,1578.4,31.3203952]
[1673836905264,0.12765877,1578.6,1578.4,26.92020918]
[1673836905669,0.45819542,1578.5,1578.4,26.92020918]
[1673836905914,0.45819542,1578.5,1578.4,29.92020918]
[1673836906561,0.45819542,1578.5,1578.4,17.75780918]
[1673836907137,0.45486096,1578.5,1578.4,17.75780918]
[1673836907351,0.45486096,1578.5,1578.4,20.9451502]
[1673836909047,0.45486096,1578.5,1578.4,6.98152918]
[1673836909214,0.45486096,1578.5,1578.3,6.33565]
[1673836910054,0.45486096,1578.5,1578.3,12.67158]
[1673836914057,0.45486096,1578.5,1578.3,6.33565]
[1673836914225,1.40287809,1578.5,1578.1,23.62048]
[1673836914414,1.60346178,1578.5,1578.2,3.0]
[1673836914851,1.60346178,1578.5,1578.2,9.33626]
[1673836915897,0.45486096,1578.5,1578.2,15.67259]
[1673836916109,0.45486096,1578.5,1578.2,17.10559]
[1673836916675,0.45486096,1578.5,1578.2,17.11742105]
[1673836917400,0.45486096,1578.5,1578.2,15.68442105]
[1673836917783,0.45486096,1578.5,1578.2,19.47070815]
[1673836918200,0.93026096,1578.5,1578.2,17.12542105]
[1673836918413,0.45486096,1578.5,1578.2,15.68442105]
[1673836919251,2.82494764,1578.5,1578.1,6.33645]
[1673836919838,0.94801713,1578.4,1578.1,6.33645]
[1673836920205,2.82494764,1578.5,1578.1,6.33645]
[1673836920517,1.40287809,1578.5,1578.1,16.21894297]
[1673836921196,0.45486096,1578.5,1578.2,1.441]
[1673836921520,2.97470746,1578.5,1578.2,7.77719]
[1673836921733,1.40287809,1578.5,1578.2,6.33619]
[1673836921950,1.74566873,1578.5,1578.2,6.33619]
[1673836922623,1.74566873,1578.5,1578.1,6.35911397]
[1673836923769,2.51995965,1578.4,1578.1,6.33645]
[1673836923919,0.94801713,1578.4,1578.1,12.67318]
[1673836924165,2.82494764,1578.5,1578.1,15.388952]
[1673836924355,1.40287809,1578.5,1578.1,15.388952]
[1673836925020,0.45486096,1578.5,1578.1,16.829952]
[1673836925343,0.45486096,1578.5,1578.1,16.85210142]
[1673836925569,0.45486096,1578.5,1578.3,6.33593]
[1673836925881,1.40287809,1578.5,1578.3,6.33593]
[1673836926048,1.40287809,1578.5,1578.2,6.33601]
[1673836926260,0.45486096,1578.5,1578.2,12.67208]
[1673836927255,0.45486096,1578.5,1578.3,0.02214662]
[1673836927410,0.45486096,1578.5,1578.3,2.72456928]
[1673836927616,0.45486096,1578.5,1578.4,12.67104]
[1673836928710,0.45486096,1578.5,1578.4,17.10604]
[1673836928911,1.09189108,1578.8,1578.4,17.10604]
[1673836928912,0.14387395,1578.8,1578.4,17.33604]
[1673836929090,0.14387395,1578.8,1578.7,1.433]
[1673836929309,0.14387395,1578.8,1578.7,4.253388]
[1673836929518,0.14387395,1578.8,1578.7,16.922028]
[1673836934136,0.14387395,1578.8,1578.7,15.24580298]
[1673836934351,0.14387395,1578.8,1578.7,16.68680298]
[1673836935671,0.14387395,1578.8,1578.7,19.70010102]
[1673836936999,0.14387395,1578.8,1578.7,19.68680298]
[1673836937342,0.14387395,1578.8,1578.7,17.10964]
[1673836937563,0.14387395,1578.8,1578.7,14.10964]
[1673836938586,0.14387395,1578.8,1578.7,17.12293804]
[1673836942142,0.14387395,1578.8,1578.7,17.10964]
[1673836942489,0.82087395,1578.8,1578.7,7.77532]
[1673836942710,0.82087395,1578.8,1578.4,6.33546]
[1673836942711,0.90296134,1578.8,1578.5,7.76687]
[1673836942865,0.22596134,1578.8,1578.6,6.33469]
[1673836943093,0.22596134,1578.8,1578.6,12.66941]
[1673836943404,0.14387395,1578.8,1578.6,12.66941]
[1673836944057,0.14387395,1578.8,1578.6,14.09941]
[1673836944744,0.14387395,1578.8,1578.7,1.433]
[1673836944974,0.14387395,1578.8,1578.6,12.66941]
[1673836946343,0.14387395,1578.8,1578.6,6.33469]
[1673836946695,0.14387395,1578.8,1578.5,6.33486]
[1673836946696,0.30058306,1578.8,1578.5,6.33486]
[1673836946953,1.24860019,1578.8,1578.5,6.33486]
[1673836947612,1.24860019,1578.8,1578.4,17.10574]
[1673836948035,2.51972911,1578.7,1578.3,6.33558]
[1673836948241,3.2471068,1578.6,1578.2,36.64601]
[1673836948497,3.2471068,1578.6,1578.2,12.67234]
[1673836948498,0.4753,1578.6,1578.2,12.67234]
[1673836948651,0.4753,1578.7,1578.2,12.67234]
[1673836949322,0.14387395,1578.8,1578.4,1.441]
[1673836949517,0.14387395,1578.8,1578.5,12.67008]
[1673836949777,0.14387395,1578.8,1578.5,14.714704]
[1673836949962,0.14387395,1578.8,1578.5,16.144704]
[1673836950638,0.14387395,1578.8,1578.4,17.10542]
[1673836950843,2.66351385,1578.8,1578.4,3.0]
[1673836951056,2.66351385,1578.8,1578.3,7.76663]
[1673836951057,2.98926063,1578.8,1578.3,6.33563]
[1673836951379,2.51973655,1578.7,1578.3,6.33563]
[1673836951941,2.51973655,1578.7,1578.2,7.77701]
[1673836952108,0.25197366,1578.6,1578.2,7.77701]
[1673836952636,7.28251713,1578.7,1578.2,7.77701]
[1673836952986,10.25800818,1578.8,1578.2,7.77701]
[1673836953205,7.90136108,1578.8,1578.2,7.77701]
[1673836953373,10.25800818,1578.8,1578.2,7.77701]
[1673836954006,10.25800818,1578.8,1578.2,14.11334]
[1673836954623,3.54553589,1578.7,1578.2,14.11334]
[1673836954931,8.30813795,1578.7,1578.2,7.77701]
[1673836956353,7.36012082,1578.7,1578.2,7.77701]
[1673836956595,8.30813795,1578.7,1578.2,7.77701]
[1673836957716,8.30468684,1578.7,1578.2,7.77701]
[1673836958152,3.44853818,1578.8,1578.4,12.67078]
[1673836958507,1.04189108,1578.8,1578.4,6.33532]
[1673836958822,1.67658389,1578.3,1578.2,6.33605]
[1673836959036,1.67658389,1578.3,1578.2,9.33605]
[1673836959191,1.67658389,1578.3,1578.2,10.903296]
[1673836959400,1.67658389,1578.3,1578.2,12.344296]
[1673836959716,1.67658389,1578.3,1578.2,18.680626]
[1673836963600,1.67658389,1578.3,1578.2,19.32696518]
[1673836964075,7.7412,1578.7,1578.2,19.32696518]
[1673836964287,7.7412,1578.7,1578.4,12.67092]
[1673836964495,0.94801713,1578.7,1578.4,6.33544]
[1673836964865,2.51970464,1578.7,1578.4,6.33544]
[1673836965068,0.94801713,1578.6,1578.2,9.33603]
[1673836965278,0.09480171,1578.5,1578.2,9.33603]
[1673836965545,1.42331713,1578.6,1578.2,9.33603]
[1673836965756,14.09281713,1578.6,1578.2,3.0]
[1673836965913,2.51990755,1578.5,1578.0,6.33694]
[1673836966129,8.85524755,1578.5,1578.1,3.0]
[1673836966335,0.88552475,1578.4,1578.1,3.0]
[1673836966799,0.88552475,1578.4,1578.0,6.33694]
[1673836967122,1.36092475,1578.4,1578.0,6.33694]
[1673836967495,0.88552475,1578.4,1578.0,6.33694]
[1673836967909,0.88552475,1578.4,1577.9,19.78339]
[1673836967910,7.22115475,1578.4,1577.9,19.78339]
[1673836968162,0.72211548,1578.3,1577.9,19.78339]
[1673836968541,0.72211548,1578.3,1577.9,13.4461]
[1673836968749,0.72211548,1578.3,1577.9,1.432]
[1673836969010,17.3494132,1578.3,1577.7,17.95993001]
[1673836969178,9.33219666,1578.2,1577.7,17.95993001]
[1673836969421,0.93321967,1578.1,1577.7,17.95993001]
[1673836970262,0.4754,1578.2,1577.8,0.00347537]
[1673836970471,0.4754,1578.2,1577.9,1.432]